fUSD/lending_fUSD_20260103
["ID","MTS","AMOUNT","RATE_DAILY","PERIOD"]
[400378204,1767462562088,-2772.01478867,0.00020187,2]
[400378205,1767462562114,-217.35,0.00020187,2]
[400378206,1767462562139,-250.0,0.00022206,2]
[400378207,1767462562160,-1200.0,0.00026675,2]
[400378208,1767462562181,-217.35,0.00026676,2]
[400378209,1767462562201,-151.0,0.00026881,2]
[400378210,1767462562221,-151.0,0.0002699,2]
[400378211,1767462562242,-151.0,0.00027097,2]
[400378212,1767462562262,-273.1107,0.000286,2]
[400378213,1767462562282,-300.0,0.00029997,2]
[400378214,1767462562303,-300.0,0.00029997,2]
[400378215,1767462562324,-300.0,0.00029999,2]
[400378216,1767462562347,-1200.0,0.00029999,2]
[400378217,1767462562367,-10000.0,0.0003,2]
[400378218,1767462562389,-170.0,0.00032332,3]
[400378219,1767462562412,-217.35,0.00033165,2]
[400378220,1767462565266,151.0,0.0002897,2]
[400378221,1767462569195,-5000.0,0.00034814,2]
[400378222,1767462569217,-276.7,0.00035515,30]
[400378223,1767462569238,-1733.62,0.00035907,2]
[400378224,1767462569260,-166.66,0.00035919,30]
[400378225,1767462569282,-150.0,0.00036067,2]
[400378226,1767462569302,-500.0,0.00036068,15]
[400378227,1767462569324,-500.0,0.00036068,15]
[400378228,1767462569347,-156.22297201,0.00036068,7]
[400378229,1767462569372,-500.0,0.00036068,15]
[400378230,1767462569395,-160.12670547,0.00036068,15]
[400378231,1767462569423,-500.0,0.00036068,15]
[400378232,1767462569447,-500.0,0.00036068,15]
[400378233,1767462569470,-500.0,0.00036068,15]
[400378234,1767462569494,-500.0,0.00036068,15]
[400378235,1767462569516,-500.0,0.00036068,15]
[400378236,1767462569540,-500.0,0.00036068,15]
[400378237,1767462569564,-500.0,0.00036068,15]
[400378238,1767462569587,-500.0,0.00036068,15]
[400378239,1767462569611,-500.0,0.00036068,15]
[400378240,1767462569638,-179.05199565,0.00036068,15]
[400378241,1767462569662,-500.0,0.00036068,15]
[400378242,1767462569684,-500.0,0.00036068,15]
[400378243,1767462569707,-500.0,0.00036068,15]
[400378244,1767462569729,-500.0,0.00036068,15]
[400378245,1767462569751,-500.0,0.00036068,15]
[400378246,1767462569774,-349.05642401,0.00036068,15]
[400378247,1767462569798,-242.1168884,0.00036068,15]
[400378248,1767462569817,-31611.19703736,0.00036069,2]
[400378249,1767462581925,151.0,0.00027505,2]
[400378251,1767462598782,151.0,0.00027505,2]
[400378269,1767462631953,-400.0,0.00036068,2]
[400378271,1767462631965,-257.85661962,0.00036069,2]
[400378273,1767462631977,-344.58,0.00036069,2]
[400378274,1767462631989,-1783.43233148,0.00036069,2]
[400378275,1767462632010,-4273.61395881,0.00036069,2]
[400378276,1767462632064,-450.1325,0.00036069,2]
[400378277,1767462632076,-547.95820545,0.00036069,2]
[400378278,1767462632117,-519.99902324,0.00036069,2]
[400378279,1767462632130,-3078.20260405,0.00036069,2]
[400378280,1767462632142,-733.26861594,0.00036069,2]
[400378281,1767462632155,-56666.65910405,0.00036069,2]
[400378282,1767462632165,-9999.99,0.00036261,2]
[400378283,1767462632174,-203.02,0.00036261,10]
[400378284,1767462632184,-1791.27,0.00036261,2]
[400378285,1767462632193,-150.0,0.00036375,2]
[400378286,1767462632203,-166.66,0.00036675,30]
[400378287,1767462632217,-893.46,0.00036774,2]
[400378289,1767462632226,-999.0,0.0003693,3]
[400378291,1767462632236,-10506.0,0.00037,2]
[400378293,1767462632246,-166.66,0.00037431,30]
[400378295,1767462632256,-150.0,0.00037698,2]
[400378297,1767462632266,-158.89,0.00037698,49]
[400378299,1767462632276,-429.63928438,0.00037698,49]
[400378301,1767462632287,-477.50618194,0.00037698,49]
[400378303,1767462632300,-92.62853368,0.00037698,49]
[400378305,1767462632309,-476.68734053,0.00037782,2]
[400378307,1767462632320,-1100.7542825,0.00037782,2]
[400378372,1767462638036,-476.81295156,0.00036999,15]
[400378373,1767462638053,-23.18704844,0.00036999,15]
[400378374,1767462638064,-205.45071378,0.00036999,15]
[400378375,1767462638074,-468.92837697,0.00037782,2]
[400378376,1767462638084,-752.08043151,0.00037846,2]
[400378377,1767462638095,-478.37891291,0.00037846,2]
[400378378,1767462638141,-2875.06165558,0.00037846,2]
[400378379,1767462638152,-5984.49312223,0.00037846,2]
[400378380,1767462638163,-4909.64065108,0.00037846,2]
[400378381,1767462638196,-4593.89716989,0.00037846,2]
[400378533,1767462640182,-372.34049029,0.00037846,2]
[400378534,1767462640193,-393.66239999,0.00037846,2]
[400378535,1767462640289,-596.298,0.00037846,2]
[400378536,1767462640301,-995.99582764,0.00037846,2]
[400378537,1767462640447,-4365.43074627,0.00037846,2]
[400378542,1767462643589,-47375.86779261,0.00037846,2]
[400378543,1767462643600,-1000.0,0.00037901,2]
[400378544,1767462643610,-597.41658104,0.00038088,2]
[400378545,1767462643619,-166.66,0.00038188,30]
[400378546,1767462643629,-200.0,0.00038293,2]
[400378547,1767462643640,-675.27,0.00038342,120]
[400378548,1767462643650,-1239.4566,0.000385,120]
[400378549,1767462643660,-560.0,0.00038631,5]
[400378550,1767462643670,-597.41658099,0.00038634,2]
[400378551,1767462643681,-166.66,0.00038944,30]
[400378552,1767462643691,-597.41658099,0.0003918,2]
[400378553,1767462643702,-166.84,0.00039587,2]
[400378554,1767462643712,-217.35,0.00039654,2]
[400378555,1767462643722,-166.66,0.000397,30]
[400378556,1767462643732,-597.41658099,0.00039725,2]
[400378557,1767462643742,-276.7,0.00039841,120]
[400378558,1767462643752,-500.0,0.00040073,5]
[400378559,1767462643765,-154.09747,0.00040161,10]
[400378560,1767462643774,-597.41658099,0.00040271,15]
[400378561,1767462643784,-3458.0,0.00040359,5]
[400378562,1767462643794,-519.48,0.00040796,2]
[400378563,1767462643804,-597.41658099,0.00040817,15]
[400378564,1767462643814,-435.663,0.00040881,2]
[400378565,1767462643824,-2218.456,0.00040881,2]
[400378566,1767462643835,-565.0,0.00040881,2]
[400378567,1767462643845,-475.597,0.00040881,2]
[400378568,1767462643855,-2434.0,0.00040881,2]
[400378569,1767462643866,-228.46394229,0.00041096,2]
[400378570,1767462643875,-168.0,0.00041216,2]
[400378571,1767462643886,-597.41658099,0.00041363,15]
[400378572,1767462643896,-690.0,0.00041375,5]
[400378573,1767462643905,-500.0,0.00041456,60]
[400378574,1767462643916,-168.0,0.00041509,2]
[400378575,1767462643926,-1932.52999564,0.0004171,7]
[400378576,1767462643936,-597.41658099,0.00041908,15]
[400378577,1767462643946,-168.0,0.00041941,2]
[400378578,1767462643955,-324.0,0.00042055,30]
[400378579,1767462643965,-168.0,0.00042383,7]
[400378580,1767462643975,-150.38126994,0.00042434,39]
[400378581,1767462643985,-597.41658099,0.00042454,15]
[400378582,1767462643995,-500.0,0.00042552,60]
[400378583,1767462644005,-1000.0,0.00042638,2]
[400378584,1767462644016,-168.0,0.00042695,7]
[400378585,1767462644026,-200.0,0.00042739,120]
[400378586,1767462644036,-151.07839424,0.0004286,40]
[400378587,1767462644046,-2000.0,0.00042885,3]
[400378588,1767462644055,-168.0,0.00042886,2]
[400378589,1767462644065,-551.35100503,0.000429,28]
[400378590,1767462644075,-1406.44,0.00042906,120]
[400378591,1767462644086,-551.35100497,0.00042914,28]
[400378592,1767462644096,-500.0,0.00042973,10]
[400378593,1767462644106,-508.05780971,0.00042973,10]
[400378594,1767462644116,-500.0,0.00042973,10]
[400378595,1767462644125,-501.58852701,0.00042973,10]
[400378596,1767462644144,-500.0,0.00042973,10]
[400378597,1767462644158,-522.26568354,0.00042973,7]
[400378598,1767462644168,-177.47568038,0.00042973,10]
[400378599,1767462644179,-500.0,0.00042973,10]
[400378600,1767462644189,-503.52753185,0.00042973,10]
[400378601,1767462644199,-500.0,0.00042973,10]
[400378602,1767462644208,-500.0,0.00042973,10]
[400378603,1767462644218,-407.40191383,0.00042973,10]
[400378604,1767462644227,-500.0,0.00042973,10]
[400378605,1767462644237,-613.28928858,0.00042973,10]
[400378606,1767462644247,-500.0,0.00042973,10]
[400378607,1767462644256,-500.0,0.00042973,10]
[400378608,1767462644266,-500.0,0.00042973,10]
[400378609,1767462644275,-500.0,0.00042973,10]
[400378610,1767462644285,-195.6349855,0.00042973,10]
[400378611,1767462644295,-500.0,0.00042973,10]
[400378612,1767462644305,-564.80462917,0.00042973,10]
[400378613,1767462644315,-500.0,0.00042973,10]
[400378614,1767462644325,-500.0,0.00042973,10]
[400378615,1767462644335,-500.0,0.00042973,10]
[400378616,1767462644345,-500.0,0.00042973,10]
[400378617,1767462644355,-500.0,0.00042973,10]
[400378618,1767462644369,-639.71670893,0.00042973,10]
[400378619,1767462644379,-186.43499168,0.00042973,30]
[400378620,1767462644389,-197.81296174,0.00042992,31]
[400378621,1767462644398,-626.77586231,0.00042992,31]
[400378622,1767462644410,-198.74199447,0.00042992,31]
[400378623,1767462644420,-280.3150653,0.00042992,31]
[400378624,1767462644429,-1882.8591741,0.00042993,2]
[400378625,1767462644441,-22348.8997836,0.00042993,2]
[400378626,1767462644451,-18711.3305851,0.00042993,2]
[400378627,1767462644461,-666.0,0.00042999,30]
[400378628,1767462644472,-999.0,0.00042999,120]
[400378629,1767462644481,-711.66,0.00043,30]
[400378630,1767462644491,-157.28188232,0.00043,9]
[400378631,1767462644501,-597.41658099,0.00043,15]
[400378632,1767462644515,-212902.72012028,0.00043,120]
[400378633,1767462644531,-619.42516284,0.00043,120]
[400378645,1767462646054,-18209.52250519,0.00043,120]
[400378646,1767462646067,-1235.93486426,0.00043,120]
[400378647,1767462646079,-11910.53209238,0.00043,120]
[400378648,1767462646090,-4101.86721699,0.00043,120]
[400378649,1767462646106,-506.90891425,0.00043,120]
[400378650,1767462646119,-384.79023,0.00043,120]
[400378651,1767462646322,-5683.29889381,0.00043,120]
[400378652,1767462646332,-247.6576609,0.00043,120]
[400378653,1767462646342,-2184.98167556,0.00043,2]
[400378654,1767462646355,-1452.13445362,0.00043,2]
[400378655,1767462646370,-222.72,0.00043008,2]
[400378656,1767462646379,-2184.98167552,0.00043012,2]
[400378657,1767462646389,-2184.98167552,0.00043024,2]
[400378658,1767462646399,-157.2818823,0.00043028,10]
[400378659,1767462646411,-1452.13445362,0.00043031,2]
[400378660,1767462646420,-2184.98167552,0.00043037,2]
[400378661,1767462646430,-2184.98167552,0.00043049,2]
[400378662,1767462646441,-157.2818823,0.00043056,10]
[400378663,1767462646451,-2184.98167552,0.00043061,2]
[400378664,1767462646461,-186.15168494,0.0004309,7]
[400378665,1767462646471,-186.15168494,0.0004309,7]
[400378666,1767462646480,-150.0,0.00043096,30]
[400378667,1767462646490,-150.0,0.00043096,30]
[400378668,1767462646500,-536.63955625,0.00043096,30]
[400378669,1767462646509,-150.0,0.00043096,30]
[400378670,1767462646519,-150.0,0.00043096,30]
[400378671,1767462646529,-218.793513,0.00043096,30]
[400378672,1767462646539,-150.0,0.00043096,30]
[400378673,1767462646549,-150.0,0.00043096,30]
[400378674,1767462646559,-150.0,0.00043096,30]
[400378675,1767462646569,-150.0,0.00043096,30]
[400378676,1767462646579,-150.53428595,0.00043096,30]
[400378677,1767462646588,-150.0,0.00043096,30]
[400378678,1767462646598,-150.0,0.00043096,30]
[400378679,1767462646607,-150.0,0.00043096,30]
[400378680,1767462646618,-150.0,0.00043096,30]
[400378681,1767462646629,-536.63955625,0.00043096,30]
[400378682,1767462646638,-536.63955625,0.00043096,30]
[400378683,1767462646648,-536.63955625,0.00043096,30]
[400378684,1767462646657,-536.63955625,0.00043096,30]
[400378685,1767462646667,-536.63955625,0.00043097,30]
[400378686,1767462646677,-536.63955625,0.00043097,30]
[400378687,1767462646687,-536.63955625,0.00043097,30]
[400378688,1767462646697,-536.63955625,0.00043097,30]
[400378689,1767462646706,-536.63955625,0.00043097,30]
[400378690,1767462646721,-536.63955625,0.00043097,30]
[400378691,1767462646731,-536.63955625,0.00043097,30]
[400378692,1767462646741,-536.63955625,0.00043097,30]
[400378693,1767462646751,-536.63955625,0.00043097,30]
[400378694,1767462646761,-536.63955625,0.00043098,30]
[400378695,1767462646771,-150.0,0.00043098,30]
[400378696,1767462646781,-536.63955625,0.00043098,30]
[400378697,1767462646791,-536.63955625,0.00043098,30]
[400378698,1767462646801,-536.63955625,0.00043098,30]
[400378699,1767462646811,-536.63955625,0.00043098,30]
[400378700,1767462646821,-536.63955625,0.00043098,30]
[400378701,1767462646831,-150.0,0.00043098,30]
[400378702,1767462646841,-150.0,0.00043098,30]
[400378703,1767462646859,-536.63955625,0.00043098,30]
[400378704,1767462646869,-536.63955625,0.00043098,30]
[400378705,1767462646882,-536.63955625,0.00043099,30]
[400378706,1767462646892,-536.63955625,0.00043099,30]
[400378707,1767462646902,-536.63955625,0.00043099,30]
[400378708,1767462646913,-150.0,0.00043099,30]
[400378709,1767462646924,-150.0,0.00043099,30]
[400378710,1767462646935,-536.63955625,0.00043099,30]
[400378711,1767462646947,-536.63955625,0.00043099,30]
[400378712,1767462646957,-536.63955625,0.00043099,30]
[400378713,1767462646967,-536.63955625,0.00043099,30]
[400378714,1767462646978,-150.0,0.00043099,30]
[400378715,1767462646988,-536.63955625,0.00043099,30]
[400378716,1767462646998,-536.63955625,0.000431,30]
[400378717,1767462647009,-536.63955625,0.000431,30]
[400378718,1767462647019,-35559.21884836,0.000431,30]
[400378719,1767462647029,-536.63955625,0.000431,30]
[400378720,1767462647039,-150.0,0.000431,30]
[400378721,1767462647049,-536.63955625,0.000431,30]
[400378722,1767462647059,-150.0,0.000431,30]
[400378723,1767462647070,-150.0,0.000431,30]
[400378724,1767462647080,-245780.00705913,0.000431,120]
[400378735,1767462648117,151.0,0.0002816,2]
[400378736,1767462665483,151.0,0.0003308,2]
[400378737,1767462681978,151.0,0.00033502,2]
[400378738,1767462698471,151.0,0.00033502,2]
[400378739,1767462701745,408.90652563,0.00043161,120]
[400378744,1767462715041,135.03231329,0.00033508,2]
[400378753,1767463022663,600.0,0.00031029,120]
[400378756,1767463401397,6336.0,0.00032,120]
[400378758,1767463450362,195.0,0.00032632,120]
[400378761,1767463577342,500.0,0.00043172,120]
[400378762,1767463577576,500.0,0.00043172,120]
[400378763,1767463577847,500.0,0.00043172,120]
[400378764,1767463578080,500.0,0.00043172,120]
[400378765,1767463578315,500.0,0.00043172,120]
[400378766,1767463578584,500.0,0.00043172,120]
[400378767,1767463578833,500.0,0.00043172,120]
[400378768,1767463579074,500.0,0.00043172,120]
[400378769,1767463579323,500.0,0.00043172,120]
[400378770,1767463579562,500.0,0.00043172,120]
[400378771,1767463579811,500.0,0.00043172,120]
[400378772,1767463580049,500.0,0.00043172,120]
[400378773,1767463580288,500.0,0.00043172,120]
[400378774,1767463580529,500.0,0.00043172,120]
[400378775,1767463580795,500.0,0.00043172,120]
[400378776,1767463581030,500.0,0.00043172,120]
[400378777,1767463581497,500.0,0.00043172,120]
[400378778,1767463581535,500.0,0.00043172,120]
[400378779,1767463581746,500.0,0.00043172,120]
[400378780,1767463581995,516.67581247,0.00043172,120]
[400378782,1767463759160,-151.0,0.00027661,2]
[400378783,1767463759184,-151.0,0.00027661,2]
[400378784,1767463759207,-151.0,0.00027707,2]
[400378785,1767463759229,-151.0,0.00027856,2]
[400378786,1767463759249,-151.0,0.00027856,2]
[400378787,1767463759271,-151.0,0.00027895,2]
[400378788,1767463759292,-300.0,0.00030297,2]
[400378789,1767463759313,-494.51525855,0.00031264,2]
[400378790,1767463759334,-218.12895722,0.00031488,2]
[400378791,1767463759354,-255.03058334,0.00031588,2]
[400378792,1767463768118,-222.96941666,0.00031588,2]
[400378793,1767463768140,-293.31677772,0.00035992,2]
[400378795,1767463773098,-159.82,0.00020342,2]
[400378796,1767463773120,-151.0,0.0003049,2]
[400378797,1767463773147,-149.21156418,0.00030512,2]
[400378810,1767463832185,-151.0,0.00030317,2]
[400378811,1767463832196,-151.0,0.00030459,2]
[400378812,1767463832206,-10.60843582,0.00030512,2]
[400378813,1767463832219,-250.0,0.00033505,2]
[400378814,1767463832229,-600.0,0.00033505,120]
[400378815,1767463832239,-29.41278628,0.00035992,2]
[400378816,1767463832249,-1652.64,0.00036174,2]
[400378817,1767463832260,-500.0,0.00037507,2]
[400378818,1767463832271,-300.0,0.00037871,3]
[400378819,1767463832282,-1600.0,0.00037871,3]
[400378820,1767463832292,-1200.0,0.00037872,3]
[400378821,1767463832305,-9999.99,0.00037873,2]
[400378822,1767463832315,-3616.88,0.00039872,2]
[400378823,1767463832325,-500.0,0.00039889,31]
[400378824,1767463832335,-315.65902747,0.00039889,31]
[400378825,1767463832346,-188.16192012,0.00039889,31]
[400378826,1767463832356,-152.87040143,0.00039889,31]
[400378827,1767463832367,-15651.55284125,0.0003989,30]
[400378828,1767463832379,-1795.22834089,0.0003989,30]
[400378829,1767463832391,-332.82824204,0.0003989,30]
[400378831,1767463832401,-372.34751707,0.0003989,2]
[400378840,1767463838950,-500.0,0.00039889,31]
[400378841,1767463838960,-90.250307,0.00039889,31]
[400378842,1767463838972,-409.749693,0.00039889,31]
[400378843,1767463838982,-500.0,0.00039889,31]
[400378844,1767463838992,-500.0,0.00039889,31]
[400378845,1767463839002,-58.16584792,0.00039889,31]
[400378855,1767463840314,-109.24506423,0.00039889,31]
[400378856,1767463840323,-500.0,0.00039889,31]
[400378857,1767463840333,-500.0,0.00039889,31]
[400378858,1767463840343,-500.0,0.00039889,31]
[400378859,1767463840353,-500.0,0.00039889,31]
[400378860,1767463840364,-500.0,0.00039889,31]
[400378861,1767463840374,-500.0,0.00039889,31]
[400378862,1767463840383,-534.44145836,0.00039889,31]
[400378863,1767463840393,-6896.83796951,0.0003989,2]
[400378864,1767463840404,-1746.48,0.0003989,2]
[400378865,1767463840416,-4493.96629721,0.0003989,2]
[400378886,1767463843990,-176877.90396017,0.0003989,2]
[400378887,1767463844046,-809612.46425604,0.0003989,2]
[400378888,1767463844058,-500.0,0.0003999,20]
[400378889,1767463844067,-500.0,0.00040073,5]
[400378890,1767463844077,-1364.91486209,0.00040231,5]
[400378891,1767463844094,-2434.0,0.00040336,2]
[400378892,1767463844115,-1280.0,0.00040639,5]
[400378893,1767463844134,-159.82,0.00040683,2]
[400378894,1767463844146,-565.0,0.00040726,2]
[400378895,1767463844158,-500.0,0.00040787,2]
[400378896,1767463844170,-183.58,0.00040874,2]
[400378897,1767463844182,-3036.09,0.00040954,2]
[400378898,1767463844193,-200.0,0.00041092,2]
[400378899,1767463844204,-220.97400337,0.00041096,2]
[400378900,1767463844216,-877.999,0.00041096,60]
[400378901,1767463844227,-354.985,0.000414,2]
[400378902,1767463844239,-8585.9413,0.000414,2]
[400378903,1767463844249,-2500.0,0.000414,2]
[400378904,1767463844259,-500.0,0.00041456,60]
[400378905,1767463844270,-89093.41819752,0.000415,120]
[400378906,1767463844285,-691.24287986,0.000415,120]
[400378907,1767463844299,-1281.57190676,0.000415,120]
[400378908,1767463844311,-1573.13458229,0.000415,120]
[400378909,1767463844325,-1650.68809694,0.000415,120]
[400378910,1767463844338,-916.73474021,0.000415,120]
[400378911,1767463844350,-877.07771091,0.000415,120]
[400378912,1767463844362,-656.42984484,0.000415,120]
[400378913,1767463844374,-480.14190281,0.000415,120]
[400378914,1767463844386,-326.42,0.000415,120]
[400378915,1767463844398,-834.84277497,0.000415,120]
[400378916,1767463844410,-2469.16311432,0.000415,120]
[400378917,1767463844422,-9122.49793244,0.000415,120]
[400378918,1767463844434,-48324.19159875,0.000415,120]
[400378919,1767463844444,-2524.03332757,0.00041669,15]
[400378920,1767463844454,-1657.6531915,0.00041769,7]
[400378921,1767463844463,-2524.03332754,0.00041817,15]
[400378922,1767463844473,-312.4,0.00041906,120]
[400378923,1767463844483,-2524.03332754,0.00041965,15]
[400378924,1767463844492,-3915.98,0.00042107,2]
[400378925,1767463844502,-2524.03332754,0.00042113,15]
[400378926,1767463844512,-2524.03332754,0.00042261,15]
[400378927,1767463844523,-1099.49,0.00042329,30]
[400378928,1767463844532,-178.77,0.00042329,30]
[400378929,1767463844543,-939.78,0.00042329,30]
[400378930,1767463844552,-2524.03332754,0.00042408,15]
[400378931,1767463844562,-150.23454702,0.00042434,39]
[400378932,1767463844572,-533.1727782,0.00042552,60]
[400378933,1767463844581,-150.66339915,0.0004286,40]
[400378934,1767463844591,-2000.0,0.00042885,3]
[400378935,1767463844601,-979.28880852,0.000429,15]
[400378936,1767463844610,-484.38171214,0.000429,28]
[400378937,1767463844620,-506.78496433,0.0004291,120]
[400378938,1767463844630,-979.28880847,0.00042911,15]
[400378939,1767463844640,-484.38171211,0.00042914,28]
[400378940,1767463844650,-841.92,0.00042921,120]
[400378941,1767463844660,-979.28880847,0.00042922,15]
[400378942,1767463844669,-484.38171211,0.00042929,28]
[400378943,1767463844679,-979.28880847,0.00042933,15]
[400378944,1767463844689,-484.38171211,0.00042943,28]
[400378945,1767463844699,-979.28880847,0.00042944,15]
[400378946,1767463844709,-979.28880847,0.00042956,15]
[400378947,1767463844719,-484.38171211,0.00042957,28]
[400378948,1767463844729,-979.28880847,0.00042967,15]
[400378949,1767463844738,-484.38171211,0.00042971,28]
[400378950,1767463844748,-500.0,0.00042973,10]
[400378951,1767463844757,-500.0,0.00042973,10]
[400378952,1767463844767,-500.0,0.00042973,10]
[400378953,1767463844778,-592.76567914,0.00042973,10]
[400378954,1767463844791,-500.77061776,0.00042973,10]
[400378955,1767463844801,-500.0,0.00042973,10]
[400378956,1767463844811,-500.0,0.00042973,10]
[400378957,1767463844823,-500.0,0.00042973,10]
[400378958,1767463844832,-500.0,0.00042973,10]
[400378959,1767463844842,-500.0,0.00042973,10]
[400378960,1767463844851,-260.31880002,0.00042973,10]
[400378961,1767463844863,-500.0,0.00042973,10]
[400378962,1767463844873,-500.0,0.00042973,10]
[400378963,1767463844883,-500.0,0.00042973,10]
[400378964,1767463844892,-500.0,0.00042973,10]
[400378965,1767463844902,-459.46659701,0.00042973,10]
[400378966,1767463844912,-500.0,0.00042973,10]
[400378967,1767463844921,-501.06507414,0.00042973,10]
[400378968,1767463844931,-979.28880847,0.00042978,15]
[400378969,1767463844941,-484.38171211,0.00042986,28]
[400378970,1767463844951,-979.28880847,0.00042989,15]
[400378971,1767463844960,-841.92,0.00042999,120]
[400378972,1767463844970,-841.92,0.00042999,120]
[400378973,1767463844979,-841.92,0.00042999,120]
[400378974,1767463844989,-841.92,0.00042999,120]
[400378975,1767463844999,-841.92,0.00042999,120]
[400378976,1767463845009,-999.0,0.00042999,120]
[400378977,1767463845020,-3714.0,0.00043,7]
[400378978,1767463845030,-161.73588616,0.00043,9]
[400378979,1767463845039,-16666.144,0.00043,2]
[400378980,1767463845050,-1000.0,0.00043,2]
[400378981,1767463845060,-1269.72554813,0.00043,30]
[400378982,1767463845071,-255555.0,0.00043,120]
[400378983,1767463845080,-174.97600931,0.00043,2]
[400378984,1767463845090,-979.28880847,0.00043,15]
[400378985,1767463845099,-484.38171211,0.00043,28]
[400378986,1767463845109,-200.0,0.00043016,120]
[400378987,1767463845119,-287.494182,0.00043072,120]
[400378988,1767463845129,-287.494182,0.00043072,120]
[400378989,1767463845138,-287.494182,0.00043072,120]
[400378990,1767463845148,-287.494182,0.00043072,120]
[400378991,1767463845157,-174.97600931,0.00043072,2]
[400378992,1767463845167,-150.0,0.00043096,30]
[400378993,1767463845177,-150.0,0.00043096,30]
[400378994,1767463845186,-150.0,0.00043096,30]
[400378995,1767463845197,-150.0,0.00043096,30]
[400378996,1767463845207,-354.18210713,0.00043096,30]
[400378997,1767463845217,-150.0,0.00043096,30]
[400378998,1767463845226,-226.02206269,0.00043096,30]
[400378999,1767463845236,-150.0,0.00043096,30]
[400379000,1767463845246,-150.0,0.00043096,30]
[400379001,1767463845255,-150.0,0.00043096,30]
[400379002,1767463845265,-150.0,0.00043096,30]
[400379003,1767463845275,-150.0,0.00043096,30]
[400379004,1767463845284,-354.18210713,0.00043096,30]
[400379005,1767463845294,-354.18210713,0.00043096,30]
[400379006,1767463845304,-354.18210713,0.00043096,30]
[400379007,1767463845313,-354.18210713,0.00043096,30]
[400379008,1767463845324,-354.18210713,0.00043097,30]
[400379009,1767463845334,-354.18210713,0.00043097,30]
[400379010,1767463845343,-354.18210713,0.00043097,30]
[400379011,1767463845353,-354.18210713,0.00043097,30]
[400379012,1767463845364,-354.18210713,0.00043097,30]
[400379013,1767463845374,-260.910573,0.00043097,120]
[400379014,1767463845384,-354.18210713,0.00043097,30]
[400379015,1767463845394,-354.18210713,0.00043097,30]
[400379016,1767463845404,-354.18210713,0.00043097,30]
[400379017,1767463845414,-354.18210713,0.00043097,30]
[400379018,1767463845424,-354.18210713,0.00043098,30]
[400379019,1767463845434,-354.18210713,0.00043098,30]
[400379020,1767463845443,-354.18210713,0.00043098,30]
[400379021,1767463845453,-354.18210713,0.00043098,30]
[400379022,1767463845463,-354.18210713,0.00043098,30]
[400379023,1767463845471,-354.18210713,0.00043098,30]
[400379024,1767463845480,-354.18210713,0.00043098,30]
[400379025,1767463845490,-354.18210713,0.00043098,30]
[400379026,1767463845500,-354.18210713,0.00043099,30]
[400379027,1767463845509,-354.18210713,0.00043099,30]
[400379028,1767463845519,-354.18210713,0.00043099,30]
[400379029,1767463845529,-354.18210713,0.00043099,30]
[400379030,1767463845539,-1244.21357412,0.00043099,60]
[400379031,1767463845549,-841.92,0.00043099,120]
[400379032,1767463845559,-841.92,0.00043099,120]
[400379033,1767463845568,-841.92,0.00043099,120]
[400379034,1767463845578,-841.92,0.00043099,120]
[400379035,1767463845588,-841.92,0.00043099,120]
[400379036,1767463845598,-841.92,0.00043099,120]
[400379037,1767463845608,-841.92,0.00043099,120]
[400379038,1767463845619,-841.92,0.00043099,120]
[400379039,1767463845628,-841.92,0.00043099,120]
[400379040,1767463845638,-841.92,0.00043099,120]
[400379041,1767463845648,-841.92,0.00043099,120]
[400379042,1767463845658,-841.92,0.00043099,120]